bitfinex-derivatives/quotes_BNBF0:USTF0_20250529
["timestamp","ask_amount","ask_price","bid_price","bid_amount"]
[1748549118279,0.29567428,676.42,675.22,0.29619975]
[1748549118280,0.29567428,676.42,675.55,0.46952417]
[1748549118981,0.29567428,676.42,675.56,0.46952417]
[1748549119279,0.29567428,676.42,675.22,0.29619975]
[1748549119280,0.29567428,676.42,675.49,0.46952417]
[1748549119681,0.29567428,676.42,675.5,0.46952417]
[1748549120276,0.29567428,676.42,675.49,0.46952417]
[1748549121575,0.29567428,676.42,675.44,0.46952417]
[1748549122275,0.29567428,676.42,675.46,0.46952417]
[1748549122777,0.29567428,676.42,675.52,0.46952417]
[1748549123782,0.29567428,676.42,675.49,0.46952417]
[1748549124082,0.29567428,676.42,675.58,0.46952417]
[1748549124981,0.29567428,676.42,675.57,0.46952417]
[1748549125582,0.29567428,676.42,675.55,0.46952417]
[1748549126083,0.29567428,676.42,675.42,0.46952417]
[1748549126380,0.29567428,676.42,675.22,0.29619975]
[1748549126381,0.29567428,676.42,675.39,0.46952417]
[1748549126579,0.29567428,676.42,675.38,0.46952417]
[1748549126980,0.29567428,676.42,675.22,0.29619975]
[1748549126981,0.29567428,676.42,675.37,0.46952417]
[1748549127180,0.29567428,676.42,675.35,0.46952417]
[1748549127383,0.29567428,676.42,675.32,0.46952417]
[1748549128181,0.29567428,676.42,675.29,0.46952417]
[1748549128583,0.29567428,676.42,675.22,0.29619975]
[1748549129084,0.29567428,676.42,675.23,0.46952417]
[1748549129289,0.29567428,676.42,675.22,0.29619975]
[1748549134804,0.29567428,676.42,675.23,0.46952417]
[1748549135204,0.29567428,676.42,675.24,0.46952417]
[1748549135505,0.29567428,676.42,675.31,0.46952417]
[1748549135706,0.29567428,676.42,675.32,0.46952417]
[1748549136302,0.29567428,676.42,675.35,0.46952417]
[1748549136501,0.29567428,676.42,675.34,0.46952417]
[1748549137202,0.29567428,676.42,675.35,0.46952417]
[1748549137708,0.29567428,676.42,675.34,0.46952417]
[1748549138804,0.29567428,676.42,675.35,0.46952417]
[1748549139503,0.29567428,676.42,675.32,0.46952417]
[1748549140708,0.29567428,676.42,675.35,0.46952417]
[1748549141603,0.29567428,676.42,675.36,0.46952417]
[1748549142006,0.29567428,676.42,675.22,0.29619975]
[1748549142007,0.29567428,676.42,675.35,0.46952417]
[1748549142206,0.29567428,676.42,675.34,0.46952417]
[1748549142408,0.29567428,676.42,675.35,0.46952417]
[1748549143204,0.29567428,676.42,675.36,0.46952417]
[1748549144205,0.29567428,676.42,675.25,0.46952417]
[1748549145210,0.29567428,676.42,675.26,0.46952417]
[1748549145404,0.29567428,676.42,675.27,0.29617782]
[1748549147806,0.29567428,676.42,675.27,0.76570199]
[1748549148209,0.29567428,676.42,675.28,0.46952417]
[1748549148408,0.29567428,676.42,675.29,0.29616905]
[1748549148808,0.29567428,676.42,675.29,0.76569322]
[1748549149009,0.29567428,676.42,675.33,0.46952417]
[1748549149308,0.29567428,676.42,675.34,0.46952417]
[1748549149504,0.29567428,676.42,675.35,0.29614274]
[1748549149704,0.29567428,676.42,675.35,0.76566691]
[1748549150008,0.29567428,676.42,675.36,0.46952417]
[1748549150204,0.29567428,676.42,675.35,0.29614274]
[1748549150205,0.29567428,676.42,675.35,0.76566691]
[1748549150408,0.25736314,676.81,675.35,0.76566691]
[1748549150612,0.29550827,676.8,675.35,0.76566691]
[1748549151207,0.29550827,676.8,675.35,0.29614274]
[1748549152408,0.29550827,676.8,675.36,0.46952417]
[1748549152607,0.29550827,676.8,675.37,0.29613397]
[1748549152810,0.29550827,676.8,675.37,0.76565814]
[1748549154206,0.29550827,676.8,675.43,0.46952417]
[1748549154406,0.29550827,676.8,675.44,0.29610328]
[1748549154610,0.29550827,676.8,675.44,0.76562745]
[1748549154912,0.29550827,676.8,675.44,0.29610328]
[1748549155513,0.29550827,676.8,675.45,0.46952417]
[1748549155709,0.29550827,676.8,675.46,0.46952417]
[1748549155913,0.29550827,676.8,675.45,0.76562306]
[1748549156309,0.29550827,676.8,675.46,0.29609451]
[1748549156509,0.29550827,676.8,675.55,0.46952417]
[1748549157109,0.29550827,676.8,675.46,0.29609451]
[1748549158112,0.25704093,677.25,675.46,0.29609451]
[1748549158318,0.29531628,677.24,675.46,0.29609451]
[1748549159819,0.29531628,677.24,675.47,0.497]
[1748549160113,0.29531628,677.24,675.49,0.29608136]
[1748549179235,0.29531628,677.24,675.57,0.46952417]
[1748549179433,0.29531628,677.24,675.56,0.46952417]
[1748549179732,0.29531628,677.24,675.49,0.29608136]
[1748549179733,0.29531628,677.24,675.57,0.2960463]
[1748549180136,0.29531628,677.24,675.59,0.46952417]
[1748549180329,0.29531628,677.24,675.61,0.46952417]
[1748549180528,0.29531628,677.24,675.62,0.29602439]
[1748549181634,0.29531628,677.24,675.63,0.489]
[1748549181836,0.29531628,677.24,675.64,0.29601562]
[1748549183439,0.29531628,677.24,675.7,0.46952417]
[1748549184038,0.29531628,677.24,675.72,0.29598058]
[1748549186237,0.29531628,677.24,675.72,0.76550475]
[1748549187036,0.29531628,677.24,675.73,0.46952417]
[1748549187340,0.29531628,677.24,675.76,0.46952417]
[1748549187640,0.29531628,677.24,675.74,0.29597182]
[1748549187641,0.29531628,677.24,675.77,0.29595868]
[1748549188044,0.29531628,677.24,675.8,0.46952417]
[1748549188239,0.29531628,677.24,675.77,0.29595868]
[1748549188240,0.29531628,677.24,675.81,0.29594116]
[1748549188446,0.29531628,677.24,675.83,0.46952417]
[1748549188739,0.29531628,677.24,675.85,0.46952417]
[1748549188943,0.29531628,677.24,675.85,0.76544782]
[1748549189139,0.29531628,677.24,675.86,0.46952417]
[1748549189346,0.29531628,677.24,675.89,0.46952417]
[1748549189740,0.29531628,677.24,675.9,0.46952417]
[1748549189944,0.29531628,677.24,675.89,0.46952417]
[1748549190347,0.29531628,677.24,675.94,0.46952417]
[1748549190547,0.29531628,677.24,675.92,0.46952417]
[1748549191241,0.29531628,677.24,675.94,0.46952417]
[1748549191442,0.29531628,677.24,675.92,0.46952417]
[1748549191745,0.29531628,677.24,675.91,0.46952417]
[1748549194246,0.29531628,677.24,675.85,0.29592365]
[1748549195949,0.29531628,677.24,675.86,0.333]
[1748549206959,0.29531628,677.24,675.85,0.29592365]
[1748549209156,0.29531628,677.24,675.86,0.379]
[1748549252101,0.29531628,677.24,675.53,0.4663392]
[1748549252800,0.29531628,677.24,675.57,0.4663392]
[1748549253500,0.29531628,677.24,675.61,0.4663392]
[1748549254206,0.29531628,677.24,675.62,0.8943392]
[1748549254403,0.29531628,677.24,675.63,0.4663392]
[1748549254802,0.29531628,677.24,675.62,0.428]
[1748549257302,0.29531628,677.24,675.67,0.4663392]
[1748549257707,0.29531628,677.24,675.69,0.4663392]
[1748549258111,0.29531628,677.24,675.72,0.4663392]
[1748549258309,0.29531628,677.24,675.73,0.4663392]
[1748549258504,0.29531628,677.24,675.72,0.4663392]
[1748549259509,0.29531628,677.24,675.71,0.4663392]
[1748549260305,0.29531628,677.24,675.62,0.428]
[1748549260306,0.29531628,677.24,675.7,0.4663392]
[1748549261010,0.29531628,677.24,675.71,0.4663392]
[1748549261210,0.29531628,677.24,675.62,0.428]
[1748549261211,0.29531628,677.24,675.72,0.4663392]
[1748549261407,0.29531628,677.24,675.71,0.4663392]
[1748549262307,0.29531628,677.24,675.7,0.4663392]
[1748549262914,0.29531628,677.24,675.69,0.4663392]
[1748549265318,0.29531628,677.24,675.62,0.428]
[1748549266916,0.29531628,677.24,675.62,0.8943392]
[1748549267219,0.29531628,677.24,675.62,0.428]
[1748549274419,0.29531628,677.24,675.62,0.4663392]
[1748549275122,0.29531628,677.24,675.71,0.4663392]
[1748549275922,0.29531628,677.24,675.68,0.4663392]
[1748549276416,0.29531628,677.24,675.69,0.429]
[1748549276618,0.29531628,677.24,675.69,0.8953392]
[1748549277025,0.29531628,677.24,675.73,0.4663392]
[1748549277523,0.29531628,677.24,675.74,0.4663392]
[1748549277720,0.29531628,677.24,675.75,0.4663392]
[1748549278620,0.29531628,677.24,675.77,0.4663392]
[1748549279021,0.29531628,677.24,675.78,0.4663392]
[1748549279228,0.29531628,677.24,675.77,0.4663392]
[1748549279427,0.29531628,677.24,675.78,0.4663392]
[1748549280130,0.29531628,677.24,675.77,0.4663392]
[1748549280327,0.29531628,677.24,675.78,0.4663392]
[1748549280825,0.29531628,677.24,675.69,0.429]
[1748549285025,0.29531628,677.24,675.7,0.29598934]
[1748549308139,0.29531628,677.24,675.91,0.4663392]
[1748549308545,0.29531628,677.24,675.9,0.4663392]
[1748549312855,0.29531628,677.24,675.83,0.4663392]
[1748549313051,0.29531628,677.24,675.7,0.29598934]
[1748549322260,0.29531628,677.24,675.71,0.38]
[1748549322565,0.29531628,677.24,675.72,0.29598058]
[1748549333774,0.29531628,677.24,675.72,0.76231978]
[1748549334372,0.29531628,677.24,675.8,0.4663392]
[1748549334571,0.29531628,677.24,675.81,0.4663392]
[1748549334975,0.29531628,677.24,675.82,0.4663392]
[1748549335575,0.29531628,677.24,675.72,0.29598058]
[1748549342877,0.29531628,677.24,675.73,0.444]
[1748549369786,0.29531628,677.24,675.72,0.29598058]
[1748549372086,0.29531628,677.24,675.73,0.479]
[1748549378597,0.25724043,676.87,675.73,0.479]
[1748549385502,0.25724043,676.87,675.74,0.4663392]
[1748549386098,0.25724043,676.87,675.73,0.479]
[1748549386099,0.25724043,676.87,675.75,0.4663392]
[1748549387404,0.25724043,676.87,675.73,0.479]
[1748549387405,0.25724043,676.87,675.76,0.4663392]
[1748549388406,0.25724043,676.87,675.77,0.4663392]
[1748549389203,0.25724043,676.87,675.73,0.479]
[1748549399213,0.25724043,676.87,675.78,0.4663392]
[1748549400816,0.25724043,676.87,675.73,0.479]
[1748549400817,0.25724043,676.87,675.84,0.4663392]
[1748549401516,0.25724043,676.87,675.83,0.4663392]
[1748549401711,0.25724043,676.87,675.84,0.4663392]
[1748549402117,0.25724043,676.87,675.79,0.4663392]
[1748549402318,0.25724043,676.87,675.77,0.4663392]
[1748549404415,0.25724043,676.87,675.79,0.4663392]
[1748549405721,0.25724043,676.87,675.8,0.325]
[1748549406517,0.25724043,676.87,675.8,0.7913392]
[1748549406721,0.25724043,676.87,675.82,0.4663392]
[1748549407221,0.25724043,676.87,675.83,0.4663392]
[1748549408022,0.29531628,677.24,675.8,0.325]
[1748549408321,0.25722617,676.96,675.8,0.325]
[1748549418632,0.25722617,676.96,675.72,0.29598058]
[1748549420335,0.25722617,676.96,675.73,0.379]
[1748549436860,0.25722617,676.96,675.74,0.4663392]
[1748549437656,0.25722617,676.96,675.75,0.4663392]
[1748549438662,0.25722617,676.96,675.73,0.379]
[1748549444967,0.29531628,677.24,675.73,0.379]
[1748549445367,0.25721857,677.04,675.73,0.379]
[1748549446066,0.25721857,677.04,675.91,0.4663392]
[1748549446767,0.25721857,677.04,675.9,0.4663392]
[1748549446965,0.25721857,677.04,675.91,0.4663392]
[1748549447664,0.25721857,677.04,675.9,0.4663392]
[1748549448570,0.25721857,677.04,675.89,0.4663392]
[1748549449171,0.25721857,677.04,675.88,0.4663392]
[1748549449666,0.25721857,677.04,675.87,0.4663392]
[1748549449970,0.25721857,677.04,675.88,0.4663392]
[1748549450171,0.25721857,677.04,675.82,0.4663392]
[1748549450571,0.25721857,677.04,675.81,0.4663392]
[1748549451665,0.25721857,677.04,675.8,0.4663392]
[1748549451866,0.25721857,677.04,675.76,0.4663392]
[1748549453167,0.25721857,677.04,675.78,0.4663392]
[1748549453672,0.25721857,677.04,675.77,0.4663392]
[1748549453871,0.25721857,677.04,675.79,0.4663392]
[1748549454069,0.25721857,677.04,675.73,0.379]
[1748549454070,0.25721857,677.04,675.76,0.4663392]
[1748549454274,0.25721857,677.04,675.73,0.379]
[1748549455376,0.25721857,677.04,675.72,0.29598058]
[1748549457073,0.25721857,677.04,675.73,0.435]
[1748549461981,0.29531628,677.24,675.73,0.435]
[1748549462182,0.25720336,677.12,675.74,0.29597182]
[1748549463177,0.29531628,677.24,675.74,0.29597182]
[1748549463375,0.25718435,677.22,675.74,0.29597182]
[1748549463782,0.29532936,677.21,675.74,0.29597182]
[1748549465579,0.29532936,677.21,675.87,0.4663392]
[1748549465783,0.29532936,677.21,675.89,0.4663392]
[1748549466384,0.29532936,677.21,675.88,0.76224971]
[1748549466584,0.29532936,677.21,675.89,0.4663392]
[1748549467181,0.29532936,677.21,675.91,0.4663392]
[1748549467385,0.29532936,677.21,675.9,0.4663392]
[1748549467685,0.29532936,677.21,675.91,0.4663392]
[1748549468987,0.29532936,677.21,676.01,0.4663392]
[1748549469179,0.29532936,677.21,675.88,0.29591051]
[1748549469180,0.29532936,677.21,675.97,0.4663392]
[1748549469582,0.29532936,677.21,675.96,0.4663392]
[1748549471088,0.29532936,677.21,675.94,0.4663392]
[1748549471482,0.29532936,677.21,675.93,0.4663392]
[1748549471685,0.29532936,677.21,675.94,0.4663392]
[1748549472188,0.29532936,677.21,675.93,0.29588862]
[1748549489195,0.29532936,677.21,675.97,0.4663392]
[1748549489399,0.29532936,677.21,675.96,0.4663392]
[1748549489596,0.29532936,677.21,675.97,0.4663392]
[1748549490299,0.29532936,677.21,676.0,0.4663392]
[1748549490502,0.29532936,677.21,676.02,0.4663392]
[1748549490901,0.29532936,677.21,676.07,0.4663392]
[1748549491505,0.29532936,677.21,676.08,0.4663392]
[1748549492505,0.29532936,677.21,676.09,0.4663392]
[1748549493107,0.29532936,677.21,676.05,0.4663392]
[1748549493605,0.29532936,677.21,676.07,0.4663392]
[1748549493802,0.29532936,677.21,676.11,0.4663392]
[1748549494410,0.29532936,677.21,676.02,0.4663392]
[1748549494606,0.29532936,677.21,676.04,0.4663392]
[1748549495009,0.29532936,677.21,676.05,0.406]
[1748549496807,0.29532936,677.21,676.07,0.4663392]
[1748549497208,0.29532936,677.21,676.06,0.4663392]
[1748549497409,0.29532936,677.21,676.08,0.4663392]
[1748549498307,0.29532936,677.21,676.09,0.4663392]
[1748549499208,0.29532936,677.21,676.05,0.406]
[1748549502512,0.29532936,677.21,676.05,0.8723392]
[1748549503110,0.29532936,677.21,676.08,0.4663392]
[1748549503609,0.29532936,677.21,676.09,0.4663392]
[1748549504414,0.29532936,677.21,676.15,0.4663392]
[1748549505414,0.29532936,677.21,676.05,0.406]
[1748549505415,0.29532936,677.21,676.12,0.4663392]
[1748549505614,0.29532936,677.21,676.08,0.4663392]
[1748549506417,0.29532936,677.21,676.07,0.4663392]
[1748549507518,0.29532936,677.21,676.06,0.4663392]
[1748549507915,0.29532936,677.21,676.07,0.4663392]
[1748549508615,0.29532936,677.21,676.05,0.406]
[1748549509013,0.29532936,677.21,676.03,0.4663392]
[1748549509220,0.29532936,677.21,676.1,0.4663392]
[1748549510218,0.29532936,677.21,676.01,0.4663392]
[1748549510413,0.29532936,677.21,676.0,0.4663392]
[1748549511319,0.29532936,677.21,676.01,0.344]
[1748549515115,0.29532936,677.21,676.01,0.8103392]
[1748549515519,0.29532936,677.21,676.02,0.4663392]
[1748549516621,0.29532936,677.21,676.01,0.344]
[1748549520122,0.29532936,677.21,676.09,0.4663392]
[1748549520519,0.29532936,677.21,676.1,0.4663392]
[1748549520717,0.29532936,677.21,676.01,0.344]
[1748549520718,0.29532936,677.21,676.11,0.4663392]
[1748549522721,0.29532936,677.21,676.12,0.4663392]
[1748549523522,0.29532936,677.21,676.14,0.4663392]
[1748549524325,0.29532936,677.21,676.06,0.4663392]
[1748549525723,0.29532936,677.21,676.05,0.4663392]
[1748549526222,0.29532936,677.21,676.04,0.4663392]
[1748549526418,0.29532936,677.21,676.08,0.4663392]
[1748549527824,0.29532936,677.21,676.1,0.4663392]
[1748549530525,0.29532936,677.21,676.13,0.4663392]
[1748549532923,0.29532936,677.21,676.11,0.4663392]
[1748549534230,0.29532936,677.21,676.21,0.4663392]
[1748549534429,0.29532936,677.21,676.22,0.4663392]
[1748549535328,0.29532936,677.21,676.21,0.4663392]
[1748549535532,0.29532936,677.21,676.24,0.4663392]
[1748549536831,0.29532936,677.21,676.2,0.4663392]
[1748549537036,0.29532936,677.21,676.21,0.4663392]
[1748549537234,0.29532936,677.21,676.2,0.4663392]
[1748549537438,0.29532936,677.21,676.21,0.4663392]
[1748549539235,0.29532936,677.21,676.01,0.344]
[1748549539236,0.29532936,677.21,676.06,0.4663392]
[1748549539437,0.29532936,677.21,676.01,0.344]
[1748549539438,0.29532936,677.21,676.04,0.4663392]
[1748549540134,0.29532936,677.21,676.03,0.4663392]
[1748549542239,0.29532936,677.21,676.02,0.4663392]
[1748549544339,0.29532936,677.21,676.01,0.344]
[1748549556442,0.29532936,677.21,675.93,0.29588862]
[1748549558744,0.29532936,677.21,676.08,0.4663392]
[1748549559646,0.29532936,677.21,676.07,0.4663392]
[1748549560241,0.29532936,677.21,676.08,0.4663392]
[1748549564251,0.29532936,677.21,676.09,0.4663392]
[1748549564554,0.29532936,677.21,676.14,0.4663392]
[1748549565456,0.29532936,677.21,676.18,0.4663392]
[1748549566156,0.29532936,677.21,676.17,0.4663392]
[1748549566356,0.29532936,677.21,676.18,0.4663392]
[1748549566556,0.29532936,677.21,676.17,0.4663392]
[1748549567151,0.29532936,677.21,675.94,0.32]
[1748549567152,0.29532936,677.21,676.22,0.4663392]
[1748549567456,0.29532936,677.21,676.23,0.4663392]
[1748549569355,0.29532936,677.21,676.06,0.4663392]
[1748549570856,0.29532936,677.21,676.04,0.4663392]
[1748549571455,0.29532936,677.21,676.05,0.4663392]
[1748549572259,0.29532936,677.21,676.06,0.4663392]
[1748549573258,0.29532936,677.21,676.07,0.4663392]
[1748549574259,0.29532936,677.21,676.06,0.4663392]
[1748549574458,0.29532936,677.21,676.07,0.4663392]
[1748549574859,0.29532936,677.21,676.06,0.4663392]
[1748549575860,0.29532936,677.21,676.05,0.4663392]
[1748549576055,0.29532936,677.21,676.06,0.4663392]
[1748549578062,0.29532936,677.21,676.07,0.4663392]
[1748549579164,0.29532936,677.21,676.17,0.4663392]
[1748549579859,0.29532936,677.21,676.18,0.4663392]
[1748549580765,0.29532936,677.21,676.22,0.4663392]
[1748549581666,0.29532936,677.21,676.2,0.4663392]
[1748549584664,0.29532936,677.21,676.22,0.4663392]
[1748549585169,0.29532936,677.21,676.23,0.4663392]
[1748549586672,0.29532936,677.21,675.94,0.32]
[1748549589169,0.29532936,677.21,675.93,0.29588862]
[1748549591474,0.29532936,677.21,675.94,0.4]
[1748549596678,0.29532936,677.21,676.13,0.4663392]
[1748549597181,0.29532936,677.21,676.14,0.4663392]
[1748549597480,0.29532936,677.21,676.13,0.4663392]
[1748549597676,0.29532936,677.21,676.07,0.4663392]
[1748549598073,0.29532936,677.21,676.06,0.4663392]
[1748549598677,0.29532936,677.21,676.04,0.4663392]
[1748549599274,0.29532936,677.21,675.97,0.4663392]
[1748549599674,0.29532936,677.21,675.96,0.4663392]
[1748549600079,0.29532936,677.21,675.95,0.4663392]
[1748549600677,0.29532936,677.21,675.94,0.8663392]
[1748549602678,0.29532936,677.21,675.94,0.4]
[1748549609187,0.29532936,677.21,676.11,0.4663392]
[1748549609684,0.29532936,677.21,676.1,0.4663392]
[1748549609889,0.29532936,677.21,675.94,0.4]
[1748549613390,0.29532936,677.21,675.38,0.25714919]
[1748549613590,0.29532936,677.21,675.4,0.29612081]
[1748549616087,0.29532936,677.21,675.41,0.439]
[1748549616288,0.29532936,677.21,675.43,0.29610766]
[1748549625898,0.29532936,677.21,675.47,0.4663392]
[1748549626098,0.29532936,677.21,675.48,0.29608574]
[1748549626498,0.29532936,677.21,675.48,0.76242494]
[1748549628397,0.29532936,677.21,675.69,0.4663392]
[1748549628599,0.29532936,677.21,675.7,0.4663392]
[1748549629094,0.29532936,677.21,675.48,0.29608574]
[1748549629095,0.29532936,677.21,675.69,0.4663392]
[1748549630394,0.29532936,677.21,675.72,0.4663392]
[1748549631603,0.29532936,677.21,675.73,0.4663392]
[1748549633006,0.29532936,677.21,675.72,0.4663392]
[1748549633200,0.29532936,677.21,675.7,0.456]
[1748549637006,0.29532936,677.21,675.71,0.4663392]
[1748549637406,0.29532936,677.21,675.74,0.4663392]
[1748549638103,0.29532936,677.21,675.8,0.4663392]
[1748549638405,0.29532936,677.21,675.79,0.4663392]
[1748549640806,0.29532936,677.21,675.8,0.4663392]
[1748549641305,0.29532936,677.21,675.79,0.4663392]
[1748549641506,0.29532936,677.21,675.8,0.4663392]
[1748549641706,0.29532936,677.21,675.81,0.4663392]
[1748549641907,0.29532936,677.21,675.82,0.4663392]
[1748549642608,0.29532936,677.21,675.83,0.4663392]
[1748549643505,0.29532936,677.21,675.84,0.4663392]
[1748549644204,0.29532936,677.21,675.83,0.4663392]
[1748549644408,0.29532936,677.21,675.7,0.456]
[1748549654108,0.29532936,677.21,675.76,0.4663392]
[1748549654310,0.29532936,677.21,675.7,0.456]
[1748549654311,0.29532936,677.21,675.75,0.4663392]
[1748549654511,0.29532936,677.21,675.76,0.4663392]
[1748549654906,0.29532936,677.21,675.77,0.4663392]
[1748549655907,0.29532936,677.21,675.76,0.4663392]
[1748549656510,0.29532936,677.21,675.77,0.4663392]
[1748549656915,0.29532936,677.21,675.75,0.4663392]
[1748549658313,0.29532936,677.21,675.73,0.4663392]
[1748549658514,0.29532936,677.21,675.74,0.4663392]
[1748549659219,0.29532936,677.21,675.76,0.4663392]
[1748549659419,0.29532936,677.21,675.7,0.456]
[1748549668016,0.29532936,677.21,675.72,0.4663392]
[1748549669222,0.29532936,677.21,675.92,0.4663392]
[1748549669822,0.29532936,677.21,675.91,0.4663392]
[1748549672523,0.29532936,677.21,675.92,0.374]
[1748549672918,0.25724899,676.91,675.92,0.374]
[1748549689436,0.25724899,676.91,675.74,0.4663392]
[1748549689934,0.25724899,676.91,675.75,0.4663392]
[1748549690131,0.25724899,676.91,675.48,0.29608574]
[1748549690132,0.25724899,676.91,675.88,0.4663392]
[1748549690534,0.25724899,676.91,675.89,0.4663392]
[1748549691532,0.25724899,676.91,675.91,0.4663392]
[1748549692131,0.25724899,676.91,675.92,0.4663392]
[1748549693232,0.25724899,676.91,675.94,0.4663392]
[1748549695435,0.25724899,676.91,675.95,0.4663392]
[1748549697441,0.25724899,676.91,675.94,0.4663392]
[1748549698646,0.25724899,676.91,675.95,0.4663392]
[1748549699147,0.25724899,676.91,675.96,0.4663392]
[1748549699349,0.25724899,676.91,675.9,0.357]
[1748549701455,0.29532936,677.21,675.9,0.357]
[1748549701755,0.25723378,676.96,675.9,0.357]
[1748549702052,0.29544279,676.95,675.9,0.357]
[1748549710552,0.29544279,676.95,675.57,0.4663392]
[1748549710753,0.29544279,676.95,675.59,0.29603753]
[1748549712558,0.29544279,676.95,675.6,0.282]
[1748549712759,0.29544279,676.95,675.61,0.29602877]
[1748549715861,0.29544279,676.95,675.71,0.4663392]
[1748549716061,0.29544279,676.95,675.72,0.29598058]
[1748549716361,0.29544279,676.95,675.81,0.4663392]
[1748549716562,0.29544279,676.95,675.82,0.29593678]
[1748549720666,0.2571815,677.26,675.82,0.29593678]
[1748549726870,0.2571815,677.26,675.83,0.4663392]
[1748549727075,0.2571815,677.26,675.84,0.29592803]
[1748549727970,0.2571815,677.26,675.84,0.76226723]
[1748549728276,0.2571815,677.26,675.85,0.367]
[1748549728475,0.2571815,677.26,675.86,0.29591927]
[1748549729173,0.2571815,677.26,675.94,0.4663392]
[1748549729470,0.2571815,677.26,675.95,0.29587987]
[1748549730175,0.2571815,677.26,675.95,0.76221907]
[1748549730878,0.2571815,677.26,675.95,0.29587987]
[1748549731178,0.2571815,677.26,675.95,0.76221907]
[1748549731478,0.2571815,677.26,675.95,0.29587987]
[1748549732273,0.2571815,677.26,675.96,0.4663392]
[1748549732472,0.2571815,677.26,676.0,0.4663392]
[1748549733271,0.2571815,677.26,676.02,0.4663392]
[1748549733474,0.2571815,677.26,676.01,0.4663392]
[1748549733880,0.2571815,677.26,676.02,0.4663392]
[1748549734181,0.2571815,677.26,676.04,0.4663392]
[1748549734580,0.2571815,677.26,676.05,0.4663392]
[1748549735080,0.2571815,677.26,676.04,0.4663392]
[1748549736677,0.2571815,677.26,675.96,0.29587549]
[1748549736678,0.2571815,677.26,676.05,0.4663392]
[1748549737276,0.2571815,677.26,676.06,0.4663392]
[1748549738382,0.2571815,677.26,675.96,0.29587549]
[1748549738383,0.2571815,677.26,676.07,0.4663392]
[1748549738684,0.2571815,677.26,676.08,0.4663392]
[1748549739278,0.2571815,677.26,676.09,0.4663392]
[1748549740481,0.2571815,677.26,676.1,0.4663392]
[1748549741084,0.2571815,677.26,676.04,0.4663392]
[1748549741283,0.2571815,677.26,676.03,0.4663392]
[1748549741484,0.2571815,677.26,676.04,0.4663392]
[1748549741984,0.2571815,677.26,676.03,0.4663392]
[1748549742283,0.2571815,677.26,676.02,0.4663392]
[1748549742685,0.95764334,679.58,676.04,0.4663392]
[1748549742979,0.25691663,677.35,676.09,0.4663392]
[1748549743184,0.29437305,679.41,676.09,0.4663392]
[1748549743380,0.25689956,678.7,676.02,0.29584923]
[1748549743884,0.29473746,678.57,676.02,0.29584923]
[1748549753290,0.29473746,678.57,676.03,0.4663392]
[1748549753486,0.29473746,678.57,676.04,0.29584048]
[1748549753990,0.29473746,678.57,676.08,0.4663392]
[1748549754892,0.29473746,678.57,676.04,0.29584048]
[1748549756693,0.29473746,678.57,676.04,0.76217968]
[1748549757093,0.29473746,678.57,676.04,0.29584048]
[1748549757395,0.29473746,678.57,676.04,0.76217968]
[1748549758400,0.29473746,678.57,676.05,0.4663392]
[1748549758598,0.29473746,678.57,676.06,0.29583173]
[1748549759993,0.29473746,678.57,676.07,0.372]
[1748549760193,0.29473746,678.57,676.07,0.66782735]
[1748549763295,0.29473746,678.57,676.07,1.13416655]
[1748549763499,0.29473746,678.57,676.08,0.4663392]
[1748549763694,0.29473746,678.57,676.09,0.4663392]
[1748549764802,0.29473746,678.57,676.13,0.4663392]
[1748549765402,0.29473746,678.57,676.14,0.4663392]
[1748549766302,0.29473746,678.57,676.15,0.4663392]
[1748549766702,0.29473746,678.57,676.07,0.66782735]
[1748549766703,0.29473746,678.57,676.14,0.4663392]
[1748549767404,0.29473746,678.57,676.15,0.4663392]
[1748549767603,0.29473746,678.57,676.16,0.4663392]
[1748549768004,0.29473746,678.57,676.08,0.4663392]
[1748549768300,0.29473746,678.57,676.12,0.4663392]
[1748549769100,0.29473746,678.57,676.11,0.4663392]
[1748549769405,0.29473746,678.57,676.12,0.4663392]
[1748549770302,0.29473746,678.57,676.11,0.4663392]
[1748549771101,0.29473746,678.57,676.07,0.66782735]
[1748549781418,0.25690335,677.95,676.07,0.66782735]
[1748549781719,0.2950157,677.93,676.07,0.66782735]
[1748549789223,0.2950157,677.93,676.07,0.29582735]
[1748549791524,0.2950157,677.93,676.08,0.426]
[1748549793824,0.2950157,677.93,676.1,0.4663392]
[1748549794224,0.2950157,677.93,676.11,0.4663392]
[1748549794625,0.2950157,677.93,676.1,0.4663392]
[1748549796927,0.2950157,677.93,676.11,0.4663392]
[1748549797829,0.2950157,677.93,676.24,0.4663392]
[1748549798025,0.2950157,677.93,676.25,0.4663392]
[1748549798627,0.2950157,677.93,676.26,0.4663392]
[1748549800229,0.2950157,677.93,676.32,0.4663392]
[1748549800632,0.2950157,677.93,676.33,0.4663392]
[1748549800832,0.2950157,677.93,676.32,0.4663392]
[1748549801429,0.2950157,677.93,676.31,0.4663392]
[1748549801734,0.2950157,677.93,676.08,0.426]
[1748549805630,0.2950157,677.93,676.38,0.46708675]
[1748549805928,0.2950157,677.93,676.08,0.426]
[1748549805929,0.2950157,677.93,676.35,0.46708675]